bitfinex-derivatives/quotes_BNBF0:USTF0_20250126
["timestamp","ask_amount","ask_price","bid_price","bid_amount"]
[1737859686424,1.0862596,689.34,688.07,0.2906681]
[1737859686621,1.0862596,689.34,688.08,0.26688655]
[1737859687121,1.0862596,689.38,688.08,0.26688655]
[1737859687821,1.0862596,689.38,688.1,0.29065542]
[1737859688023,1.0862596,689.38,688.11,0.26688655]
[1737859688223,1.0862596,689.38,688.13,0.29064275]
[1737859688419,1.0862596,689.38,688.14,0.26688655]
[1737859688624,1.0862596,689.38,688.15,0.2906343]
[1737859689425,1.0862596,689.38,688.16,0.26684872]
[1737859689624,1.0862596,689.38,688.17,0.29062586]
[1737859691028,1.0862596,689.46,688.17,0.29062586]
[1737859694127,1.0862596,689.52,688.17,0.29062586]
[1737859696930,1.0862596,689.52,688.18,0.26685818]
[1737859698231,1.0862596,689.52,688.19,0.29061741]
[1737859698834,1.0862596,689.52,688.2,0.26685832]
[1737859699034,1.0862596,689.52,688.21,0.29060897]
[1737859699334,1.0862596,689.47,688.21,0.29060897]
[1737859701336,1.0862596,689.47,688.22,0.26685972]
[1737859701636,1.0862596,689.47,688.23,0.29060052]
[1737859701836,1.0862596,689.47,688.24,0.26685972]
[1737859702235,1.0862596,689.47,688.25,0.29059208]
[1737859702434,1.0862596,689.47,688.26,0.26685972]
[1737859702633,1.0862596,689.47,688.27,0.29058363]
[1737859702836,1.0862596,689.47,688.28,0.26685972]
[1737859703138,1.0862596,689.46,688.29,0.29057519]
[1737859703337,1.0862596,689.46,688.3,0.26685424]
[1737859703537,1.0862596,689.46,688.31,0.29056675]
[1737859706138,0.70331011,689.89,688.31,0.29056675]
[1737859706139,1.0862596,689.38,688.31,0.29056675]
[1737859709342,1.0862596,689.36,688.31,0.29056675]
[1737859712650,1.0862596,689.38,688.31,0.29056675]
[1737859716551,1.0862596,689.34,688.31,0.29056675]
[1737859719454,1.0862596,689.37,688.31,0.29056675]
[1737859722952,1.0862596,689.34,688.31,0.29056675]
[1737859725560,1.0862596,689.37,688.31,0.29056675]
[1737859727866,1.0862596,689.37,688.32,0.26681738]
[1737859728062,1.0862596,689.37,688.33,0.2905583]
[1737859728260,1.0862596,689.37,688.34,0.2668151]
[1737859728464,1.0862596,689.37,688.35,0.29054986]
[1737859728664,1.0862596,689.39,688.36,0.2668151]
[1737859728865,1.0862596,689.39,688.37,0.29054142]
[1737859729063,1.0862596,689.39,688.38,0.2668151]
[1737859729265,1.0862596,689.39,688.39,0.29053298]
[1737859729465,1.0862596,689.39,688.4,0.2668151]
[1737859729668,1.0862596,689.39,688.4,0.55734386]
[1737859729969,1.0862596,689.39,688.41,0.2668151]
[1737859731469,0.70331011,689.85,688.41,0.2668151]
[1737859731470,1.0862596,689.3,688.41,0.2668151]
[1737859733867,1.0862596,689.29,688.41,0.2668151]
[1737859735475,1.0862596,689.29,688.4,0.29052876]
[1737859736071,1.0862596,689.29,688.41,0.2668208]
[1737859736673,1.0862596,689.31,688.41,0.2668208]
[1737859737073,1.0862596,689.31,688.42,0.26682005]
[1737859737273,1.0862596,689.31,688.4,0.29052876]
[1737859737475,1.0862596,689.31,688.41,0.26681941]
[1737859739977,1.0862596,689.29,688.41,0.26681941]
[1737859743277,1.0862596,689.29,688.4,0.29052876]
[1737859743476,1.0862596,689.57,688.4,0.29052876]
[1737859743477,1.0862596,689.28,688.4,0.29052876]
[1737859746778,2.21778002,689.81,688.4,0.29052876]
[1737859746779,1.0862596,689.37,688.4,0.29052876]
[1737859749380,1.0862596,689.33,688.4,0.29052876]
[1737859752382,1.0862596,689.32,688.4,0.29052876]
[1737859756584,1.0862596,689.25,688.4,0.29052876]
[1737859759584,1.0862596,689.3,688.4,0.29052876]
[1737859763693,1.0862596,689.21,688.4,0.29052876]
[1737859766390,1.0862596,689.23,688.4,0.29052876]
[1737859769592,1.0862596,689.27,688.4,0.29052876]
[1737859773100,1.0862596,689.31,688.4,0.29052876]
[1737859775800,1.0862596,689.28,688.4,0.29052876]
[1737859779301,1.0862596,689.21,688.4,0.29052876]
[1737859781511,1.0862596,689.06,688.4,0.29052876]
[1737859785314,1.0862596,689.03,688.4,0.29052876]
[1737859788718,1.0862596,689.07,688.4,0.29052876]
[1737859791821,1.0862596,689.19,688.4,0.29052876]
[1737859794325,1.0862596,689.21,688.4,0.29052876]
[1737859800323,1.0862596,689.12,688.4,0.29052876]
[1737859806126,1.0862596,689.17,688.4,0.29052876]
[1737859809529,1.0862596,689.16,688.4,0.29052876]
[1737859811928,1.0862596,689.15,688.4,0.29052876]
[1737859815334,1.0862596,689.14,688.4,0.29052876]
[1737859818531,0.70331011,689.7,688.4,0.29052876]
[1737859818532,1.0862596,689.17,688.4,0.29052876]
[1737859822238,1.0862596,689.16,688.4,0.29052876]
[1737859825539,1.0862596,689.15,688.4,0.29052876]
[1737859831739,0.70331011,689.66,688.4,0.29052876]
[1737859831740,1.0862596,689.12,688.4,0.29052876]
[1737859834739,1.0862596,689.17,688.4,0.29052876]
[1737859841342,1.0862596,689.11,688.4,0.29052876]
[1737859843850,1.0862596,689.1,688.4,0.29052876]
[1737859846343,1.0862596,689.12,688.4,0.29052876]
[1737859849148,1.0862596,689.06,688.4,0.29052876]
[1737859852451,1.0862596,689.0,688.4,0.29052876]
[1737859855145,1.0862596,688.97,688.4,0.29052876]
[1737859861855,1.0862596,688.96,688.4,0.29052876]
[1737859867560,1.0862596,688.97,688.4,0.29052876]
[1737859868356,1.0862596,688.97,688.15,1.08815404]
[1737859871962,1.0862596,688.92,688.0,1.08815404]
[1737859876358,1.0862596,688.97,687.88,1.08815404]
[1737859876561,1.0862596,688.97,687.89,0.55772067]
[1737859876762,1.0862596,688.97,687.9,0.55771645]
[1737859876959,1.0862596,688.97,687.91,0.55771222]
[1737859877163,1.0862596,688.97,687.92,0.557708]
[1737859877364,1.0862596,688.97,687.93,0.26697652]
[1737859878058,1.0862596,688.97,687.94,0.29072302]
[1737859879366,1.0862596,689.0,687.94,0.29072302]
[1737859881866,1.0862596,689.07,687.94,0.29072302]
[1737859887671,1.0862596,689.05,687.94,0.29072302]
[1737859888067,1.0862596,689.05,687.95,0.26697747]
[1737859888267,1.0862596,689.05,687.96,0.29071457]
[1737859892677,1.0862596,689.03,687.96,0.29071457]
[1737859895781,1.0862596,689.02,687.96,0.29071457]
[1737859898077,1.0862596,689.02,687.97,0.26698418]
[1737859899683,1.0862596,689.02,687.96,0.29071457]
[1737859899884,1.0862596,689.02,687.97,0.26698211]
[1737859901777,1.0862596,689.02,687.96,0.29071457]
[1737859902686,1.0862596,689.02,687.97,0.26697834]
[1737859902885,1.0862596,689.02,687.96,0.29071457]
[1737859903084,1.0862596,689.02,687.97,0.2669788]
[1737859903280,0.29001058,689.63,687.97,0.2669788]
[1737859903281,1.0862596,688.88,687.97,0.2669788]
[1737859903684,1.0862596,688.88,687.96,0.29071457]
[1737859905985,1.0862596,688.84,687.97,1.08815404]
[1737859911683,1.0862596,688.84,687.98,0.26697988]
[1737859912089,1.0862596,688.84,687.98,1.35513392]
[1737859912290,1.0862596,688.84,687.99,0.26697988]
[1737859915594,1.0862596,688.78,688.02,1.08815404]
[1737859918695,1.0862596,688.95,687.96,0.29071457]
[1737859922201,1.0862596,688.98,687.96,0.29071457]
[1737859924605,1.0862596,689.05,687.96,0.29071457]
[1737859928206,1.0862596,689.04,687.96,0.29071457]
[1737859931308,1.0862596,689.0,687.96,0.29071457]
[1737859934808,1.0862596,688.99,687.96,0.29071457]
[1737859938013,1.0862596,688.93,687.96,0.29071457]
[1737859941413,1.0862596,688.91,687.96,0.29071457]
[1737859945117,1.0862596,688.88,687.96,0.29071457]
[1737859947412,1.0862596,688.83,687.96,0.29071457]
[1737859951321,1.0862596,688.88,687.96,0.29071457]
[1737859957132,1.0862596,688.85,687.96,0.29071457]
[1737859960528,1.0862596,688.91,687.96,0.29071457]
[1737859964031,1.0862596,688.87,687.96,0.29071457]
[1737859967638,1.0862596,688.89,687.96,0.29071457]
[1737859969939,1.0862596,688.8,687.96,0.29071457]
[1737859976246,1.0862596,688.73,687.96,0.29071457]
[1737859980147,1.0862596,688.68,687.96,0.29071457]
[1737859984044,1.0862596,688.64,687.96,0.29071457]
[1737859987153,1.0862596,688.76,687.96,0.29071457]
[1737859990858,1.0862596,688.78,687.96,0.29071457]
[1737859994457,1.0862596,688.89,687.96,0.29071457]
[1737859997668,1.0862596,688.85,687.96,0.29071457]
[1737860000969,1.0862596,688.88,687.96,0.29071457]
[1737860003968,1.0862596,688.78,687.96,0.29071457]
[1737860011270,2.92109013,689.53,687.96,0.29071457]
[1737860011271,1.0862596,688.76,687.96,0.29071457]
[1737860014177,2.21778002,689.51,687.96,0.29071457]
[1737860014178,1.0862596,688.81,687.96,0.29071457]
[1737860017675,1.0862596,688.86,687.96,0.29071457]
[1737860020476,1.0862596,688.88,687.96,0.29071457]
[1737860022977,1.0862596,688.83,687.96,0.29071457]
[1737860026884,1.0862596,688.76,687.96,0.29071457]
[1737860032883,1.0862596,688.71,687.96,0.29071457]
[1737860037189,1.0862596,688.8,687.96,0.29071457]
[1737860040092,1.0862596,688.76,687.96,0.29071457]
[1737860044691,1.0862596,688.73,687.96,0.29071457]
[1737860047898,1.0862596,688.58,687.96,0.29071457]
[1737860050799,1.0862596,688.57,687.96,0.29071457]
[1737860053694,1.0862596,688.59,687.96,0.29071457]
[1737860056902,1.0862596,688.69,687.96,0.29071457]
[1737860061103,1.0862596,688.72,687.57,1.08815404]
[1737860064106,1.0862596,688.72,687.58,0.26708379]
[1737860065400,1.0862596,688.72,687.57,1.08815404]
[1737860065607,1.0862596,688.72,687.58,0.26708562]
[1737860066804,1.0862596,688.66,687.62,1.08815404]
[1737860070012,1.0862596,688.68,687.59,1.08815404]
[1737860073512,1.0862596,688.67,687.6,1.08815404]
[1737860076812,1.0862596,688.66,687.62,1.08815404]
[1737860078213,1.0862596,688.66,687.63,0.26708695]
[1737860079014,1.0862596,688.66,687.64,0.26708547]
[1737860079213,1.0862596,688.66,687.63,0.26708547]
[1737860079412,1.0862596,688.66,687.64,0.26708547]
[1737860079612,1.0862596,688.66,687.63,0.26708547]
[1737860079809,1.0862596,688.66,687.64,0.26708547]
[1737860080013,1.0862596,688.66,687.63,0.26708547]
[1737860080209,1.0862596,688.66,687.64,0.26708547]
[1737860080414,1.0862596,688.66,687.65,0.26708547]
[1737860080616,1.0862596,688.66,687.66,0.26708547]
[1737860081516,2.21778002,689.38,687.66,0.26708547]
[1737860081517,1.0862596,688.55,687.72,1.08815404]
[1737860084117,1.0862596,688.56,687.72,1.08815404]
[1737860088024,1.0862596,688.59,687.69,1.08815404]
[1737860090923,1.0862596,688.68,687.59,1.08815404]
[1737860091123,1.0862596,688.68,687.6,0.29086678]
[1737860094035,1.0862596,688.66,687.61,1.08815404]
[1737860096437,1.0862596,688.65,687.62,1.08815404]
[1737860096838,1.0862596,688.65,687.64,0.29084986]
[1737860099941,1.0862596,688.89,687.64,0.29084986]
[1737860100741,1.0862596,688.89,687.65,0.26702555]
[1737860100937,1.0862596,688.89,687.67,0.29083717]
[1737860102637,1.0862596,688.89,687.68,0.26702555]
[1737860102835,1.0862596,688.94,687.68,0.26702555]
[1737860103343,1.0862596,688.94,687.7,0.29082448]
[1737860103540,1.0862596,688.94,687.71,0.26698636]
[1737860104341,1.0862596,688.94,687.7,0.29082448]
[1737860104542,1.0862596,688.94,687.71,0.26697587]
[1737860104742,1.0862596,688.94,687.73,0.2908118]
[1737860105042,1.0862596,688.94,687.74,0.26697587]
[1737860106546,1.0862596,689.14,687.74,0.26697587]
[1737860108345,1.0862596,689.14,687.76,0.29079911]
[1737860109546,1.0862596,689.14,687.77,0.26697587]
[1737860109843,1.0862596,689.32,687.79,0.29078643]
[1737860112849,1.0862596,689.32,687.8,0.26696747]
[1737860113145,1.0862596,689.36,687.82,0.29077374]
[1737860116348,1.0862596,689.36,687.83,0.26695979]
[1737860116548,1.0862596,689.36,687.85,0.29076106]
[1737860116749,1.0862596,689.67,687.85,0.29076106]
[1737860116750,1.0862596,689.38,687.86,0.26695979]
[1737860117048,1.0862596,689.38,687.87,0.29075261]
[1737860117251,1.0862596,689.38,687.88,0.26695979]
[1737860117448,1.0862596,689.38,687.89,0.29074415]
[1737860117649,1.0862596,689.38,687.9,0.26695979]
[1737860117850,1.0862596,689.38,687.91,0.2907357]
[1737860118053,1.0862596,689.38,687.92,0.26695979]
[1737860118252,1.0862596,689.38,687.93,0.29072725]
[1737860118446,1.0862596,689.38,687.94,0.26695979]
[1737860118652,1.0862596,689.38,687.95,0.2907188]
[1737860118952,1.0862596,689.38,687.96,0.26695979]
[1737860119155,1.0862596,689.38,687.97,0.29071035]
[1737860119747,1.0862596,689.32,687.97,0.29071035]
[1737860123555,1.0862596,689.31,687.97,0.29071035]
[1737860128154,1.0862596,689.25,687.97,0.29071035]
[1737860130861,1.0862596,689.18,687.97,0.29071035]
[1737860133858,1.0862596,689.13,687.97,0.29071035]
[1737860136263,1.0862596,689.04,687.97,0.29071035]
[1737860137363,1.0862596,689.04,687.98,0.26696338]
[1737860137563,1.0862596,689.04,687.98,0.5576695]
[1737860137763,1.0862596,689.04,687.99,0.26696338]
[1737860138365,1.0862596,689.04,687.98,0.29070612]
[1737860140165,1.0862596,688.91,687.99,1.08815404]
[1737860143975,1.0862596,689.01,687.98,0.29070612]
[1737860152875,1.0862596,688.9,687.98,0.29070612]
[1737860155975,1.0862596,688.88,687.98,0.29070612]
[1737860157778,1.0862596,688.88,687.99,0.2669744]
[1737860159178,1.0862596,688.87,687.99,0.2669744]
[1737860161281,1.0862596,688.87,688.0,0.2669667]
[1737860161582,1.0862596,688.87,688.01,0.2669667]
[1737860161882,1.0862596,688.87,688.02,0.2669667]
[1737860162083,1.0862596,688.87,687.99,0.2669667]
[1737860162381,1.0862596,688.87,688.0,0.2669667]
[1737860162579,1.0862596,688.86,688.03,1.08815404]
[1737860165285,1.0862596,689.05,687.98,0.29070612]
[1737860165286,1.0862596,688.87,687.99,1.08815404]
[1737860168284,1.0862596,688.9,687.98,0.29070612]
[1737860170286,1.0862596,688.9,687.98,1.37886016]
[1737860173287,1.0862596,689.02,687.98,0.29070612]
[1737860182992,1.0862596,689.09,687.98,0.29070612]
[1737860188899,2.21778002,689.84,687.98,0.29070612]
[1737860188900,1.0862596,689.16,687.98,0.29070612]
[1737860191708,1.0862596,689.15,687.98,0.29070612]
[1737860195508,2.21778002,689.9,687.98,0.29070612]
[1737860195509,1.0862596,689.25,687.98,0.29070612]
[1737860197610,1.0862596,689.25,687.99,0.26692354]
[1737860197811,1.0862596,689.25,688.0,0.29069767]
[1737860198012,1.0862596,689.21,688.0,0.29069767]
[1737860201816,1.0862596,689.26,688.0,0.29069767]
[1737860204214,1.0862596,689.26,688.01,0.26691533]
[1737860204414,1.0862596,689.26,688.02,0.29068922]
[1737860204816,1.0862596,689.24,688.02,0.29068922]
[1737860208213,1.0862596,689.23,688.02,0.29068922]
[1737860209317,1.0862596,689.23,688.03,0.26691612]
[1737860209521,1.0862596,689.23,688.04,0.29068077]
[1737860209721,1.0862596,689.23,688.05,0.26691612]
[1737860209918,1.0862596,689.23,688.06,0.29067232]
[1737860210114,1.0862596,689.23,688.07,0.26691612]
[1737860210315,1.0862596,689.23,688.08,0.29066387]
[1737860210614,1.0862596,689.23,688.09,0.26691612]
[1737860210817,1.0862596,689.23,688.1,0.29065542]
[1737860211016,1.0862596,689.1,688.11,0.26691612]
[1737860211219,1.0862596,689.1,688.12,0.29064698]
[1737860211414,1.0862596,689.1,688.13,0.26691612]
[1737860211717,1.0862596,689.1,688.14,0.29063853]
[1737860211921,1.0862596,689.1,688.15,0.26691612]
[1737860212121,1.0862596,689.1,688.15,0.55755042]
[1737860212315,1.0862596,689.1,688.15,0.2906343]
[1737860213916,1.0862596,689.08,688.16,0.26691515]
[1737860217319,1.0862596,689.03,688.16,0.26691515]
[1737860217717,1.0862596,689.03,688.15,0.2906343]
[1737860220819,1.0862596,689.08,688.15,0.2906343]
[1737860227327,1.0862596,689.21,688.15,0.2906343]
[1737860229529,2.21778002,690.02,688.15,0.2906343]
[1737860229530,1.0862596,689.19,688.15,0.2906343]
[1737860232630,1.0862596,689.25,688.15,0.2906343]
[1737860241934,0.28995172,689.77,688.15,0.2906343]
[1737860241935,1.0862596,689.24,688.15,0.2906343]
[1737860242634,1.0862596,689.24,688.16,0.26690904]
[1737860242835,1.0862596,689.24,688.17,0.29062586]
[1737860245139,1.0862596,689.02,688.18,1.08815404]
[1737860246237,1.0862596,689.02,688.19,0.29061741]
[1737860248334,1.0862596,689.04,688.19,1.37877145]
[1737860252339,1.0862596,689.05,688.2,1.08815404]
[1737860252543,1.0862596,689.05,688.21,0.29060897]
[1737860255942,1.0862596,689.07,688.21,0.29060897]
[1737860259245,1.0862596,689.09,688.21,0.29060897]
[1737860261647,1.0862596,689.08,688.21,0.29060897]
[1737860270056,1.0862596,689.16,688.21,0.29060897]
[1737860276359,1.0862596,689.17,688.21,0.29060897]
[1737860279758,1.0862596,689.19,688.21,0.29060897]
[1737860282565,1.0862596,689.17,688.21,0.29060897]
[1737860287667,1.0862596,689.06,688.21,1.37876301]
[1737860290272,1.0862596,689.06,688.23,1.08815404]
[1737860292871,1.0862596,689.14,688.21,0.29060897]
[1737860295277,1.0862596,689.13,688.21,0.29060897]
[1737860303080,2.21778002,689.83,688.21,0.29060897]
[1737860303081,1.0862596,689.05,688.22,1.08815404]
[1737860303279,1.0862596,689.05,688.22,1.37875878]
[1737860306183,1.0862596,689.05,688.23,1.08815404]
[1737860309889,1.30351152,689.52,688.22,0.29060474]
[1737860309890,1.0862596,689.09,688.22,0.29060474]
[1737860312790,1.0862596,689.15,688.22,0.29060474]
[1737860315697,1.0862596,689.13,688.22,0.29060474]
[1737860318495,1.0862596,689.13,688.23,0.26683345]
[1737860318691,1.0862596,689.13,688.24,0.2905963]
[1737860318896,1.0862596,689.13,688.25,0.26683345]
[1737860319097,1.0862596,689.12,688.26,0.29058785]
[1737860319397,1.0862596,689.12,688.27,0.26683345]
[1737860319597,1.0862596,689.12,688.28,0.29057941]
[1737860319799,1.0862596,689.12,688.29,0.26683345]
[1737860319993,1.0862596,689.12,688.3,0.29057097]
[1737860322201,1.0862596,689.53,688.31,0.26679666]
[1737860322399,1.0862596,689.53,688.32,0.29056252]
[1737860325398,1.0862596,689.59,688.32,0.29056252]
[1737860327702,2.21778002,690.33,688.32,0.29056252]
[1737860327703,1.0862596,689.66,688.32,0.29056252]
[1737860331302,1.0862596,689.7,688.32,0.29056252]
[1737860334216,1.0862596,689.76,688.32,0.29056252]
[1737860337210,1.0862596,689.76,688.33,0.26678678]
[1737860337411,1.0862596,689.75,688.34,0.29055408]
[1737860341522,1.0862596,689.82,688.34,0.29055408]
[1737860344224,1.0862596,689.98,688.34,0.29055408]
[1737860347423,1.0862596,689.92,688.34,0.29055408]
[1737860349019,1.0862596,689.92,688.35,0.26675966]
[1737860349223,1.0862596,689.92,688.37,0.29054142]
[1737860349524,1.0862596,689.92,688.38,0.26675966]
[1737860349725,1.0862596,689.92,688.39,0.29053298]
[1737860349923,1.30351152,690.67,688.39,0.29053298]
[1737860349924,1.0862596,689.83,688.39,0.29053298]
[1737860350726,1.0862596,689.83,688.4,0.26675827]
[1737860350925,1.0862596,689.83,688.41,0.29052454]
[1737860351125,1.0862596,689.83,688.42,0.26675827]
[1737860351324,1.0862596,689.83,688.43,0.2905161]
[1737860352925,1.0862596,689.71,688.43,0.2905161]
[1737860353323,1.0862596,689.71,688.44,0.26676869]
[1737860353526,1.0862596,689.71,688.45,0.29050766]
[1737860355725,1.0862596,689.71,688.46,0.2667641]
[1737860355927,1.0862596,689.57,688.47,0.29049922]
[1737860357825,1.0862596,689.57,688.48,0.2667644]
[1737860358128,1.0862596,689.57,688.49,0.29049078]
[1737860358325,1.0862596,689.57,688.5,0.2667644]
[1737860358527,1.0862596,689.57,688.51,0.29048234]
[1737860358728,1.0862596,689.57,688.52,0.2667644]
[1737860358930,1.0862596,689.54,688.53,0.2904739]
[1737860361725,1.0862596,689.54,688.54,0.2667645]
[1737860361927,1.0862596,689.54,688.55,0.29046547]
[1737860362627,1.0862596,689.54,688.56,0.2667615]
[1737860362829,1.0862596,689.49,688.56,0.2667615]
[1737860363229,1.0862596,689.49,688.55,0.29046547]
[1737860363426,1.0862596,689.49,688.56,0.26675993]
[1737860364431,1.0862596,689.49,688.55,0.29046547]
[1737860365134,1.0862596,689.46,688.55,0.29046547]
[1737860367237,1.0862596,689.54,688.55,0.29046547]
[1737860370035,2.21778002,690.24,688.55,0.29046547]
[1737860370036,1.0862596,689.52,688.55,0.29046547]
[1737860373539,1.0862596,689.5,688.55,0.29046547]
[1737860374337,1.0862596,689.5,688.56,0.26675989]
[1737860374940,1.0862596,689.5,688.55,0.29046547]
[1737860375843,1.0862596,689.37,688.58,1.08815404]
[1737860378543,1.0862596,689.33,688.56,1.08815404]
[1737860381439,1.0862596,689.36,688.55,0.29046547]
[1737860384747,1.0862596,689.47,688.55,0.29046547]
[1737860387048,1.0862596,689.53,688.55,0.29046547]
[1737860394448,1.0862596,689.5,688.55,0.29046547]
[1737860396156,1.0862596,689.4,688.55,0.29046547]
[1737860403762,1.0862596,689.58,688.55,0.29046547]
[1737860406769,1.0862596,689.64,688.55,0.29046547]
[1737860409670,1.0862596,690.04,688.55,0.29046547]
[1737860409671,1.0862596,689.73,688.55,0.29046547]
[1737860411968,1.37621132,689.77,688.55,0.29046547]
[1737860414669,0.28995172,689.77,688.55,0.29046547]
[1737860415170,1.0862596,689.8,688.55,0.28468319]
[1737860418079,5.20657125,697.81,688.55,0.28468319]
[1737860418080,1.0862596,689.81,688.55,0.28468319]
[1737860427578,1.0862596,689.78,688.55,0.28468319]
[1737860429791,1.0862596,689.62,688.55,0.28468319]
[1737860432388,1.0862596,689.64,688.55,0.28468319]
[1737860435189,1.0862596,689.48,688.55,0.28468319]
[1737860438092,1.0862596,689.56,688.55,0.28468319]
[1737860439893,1.0862596,689.57,688.55,0.28468319]
[1737860443392,1.07985917,689.57,688.55,0.28468319]
[1737860444892,1.0862596,689.84,688.55,0.28468319]
[1737860447394,1.0862596,689.9,688.55,0.28468319]
[1737860450297,0.28990128,689.89,688.55,0.28468319]
[1737860450699,1.0862596,689.86,688.55,0.28468319]
[1737860451703,0.28991809,689.85,688.55,0.28468319]
[1737860454307,1.0862596,689.69,688.55,0.28468319]
[1737860457307,1.0862596,689.53,688.55,0.28468319]
[1737860460216,1.0862596,689.54,688.55,0.28468319]
[1737860467521,0.70567872,689.84,688.55,0.28468319]
[1737860467522,1.0862596,689.73,688.55,0.28468319]
[1737860470719,0.28991809,689.85,688.55,0.28468319]
[1737860473329,1.0862596,689.83,688.55,0.28468319]
[1737860476225,1.0862596,689.8,688.55,0.28468319]
[1737860479223,1.0862596,689.75,688.55,0.28468319]
[1737860482730,1.0862596,689.78,688.55,0.28468319]
[1737860486332,0.28991809,689.85,688.55,0.28468319]
[1737860510245,0.28991809,689.85,688.56,0.26673188]
[1737860511240,0.28991809,689.85,688.57,0.26672967]
[1737860511445,0.28991809,689.85,688.56,0.26672967]
[1737860511651,0.28991809,689.85,688.57,0.5571867]
[1737860511845,0.28991809,689.85,688.58,0.29045281]
[1737860512140,0.28991809,689.85,688.59,0.26673131]
[1737860512445,0.28991809,689.85,688.6,0.29044437]
[1737860513644,1.0862596,689.77,688.6,0.29044437]
[1737860517347,5.20657125,698.03,688.6,0.29044437]
[1737860517348,1.0862596,690.3,688.6,0.29044437]
[1737860517549,1.3759887,690.3,688.6,0.29044437]
[1737860520751,0.2897291,690.3,688.6,0.29044437]
[1737860531257,1.0862596,690.25,688.6,0.29044437]
[1737860531453,0.28975428,690.24,688.6,0.29044437]
[1737860533853,0.28975428,690.24,688.61,0.26668528]
[1737860534053,0.28975428,690.24,688.62,0.29043594]
[1737860534255,1.0862596,690.23,688.63,0.26668528]
[1737860534457,0.28976268,690.22,688.64,0.2904275]
[1737860534660,0.28976268,690.22,688.65,0.26668528]
[1737860534956,0.28976268,690.22,688.66,0.29041907]
[1737860537062,1.0862596,690.01,688.66,0.29041907]
[1737860537555,1.0862596,690.01,688.67,0.26669311]
[1737860537758,1.0862596,690.01,688.68,0.29041064]
[1737860540859,1.0862596,690.08,688.68,0.29041064]
[1737860544764,1.0862596,690.19,688.68,0.29041064]
[1737860544968,0.28976268,690.22,688.68,0.29041064]
[1737860559784,0.28976268,690.22,688.42,0.29052032]
[1737860560382,0.28976268,690.22,688.43,0.26665208]
[1737860560578,0.28976268,690.22,688.45,0.29050766]
[1737860561981,0.28976268,690.22,688.46,0.26664203]
[1737860562181,0.28976268,690.22,688.48,0.290495]
[1737860562383,0.28976268,690.22,688.49,0.26664203]
[1737860562584,0.28976268,690.22,688.51,0.29048234]
[1737860563783,0.28976268,690.22,688.52,0.26664203]
[1737860563982,0.28976268,690.22,688.54,0.29046968]
[1737860564183,0.28976268,690.22,688.55,0.26664203]
[1737860564388,0.28976268,690.22,688.57,0.29045703]
[1737860564687,0.28976268,690.22,688.58,0.26664203]
[1737860564887,0.28976268,690.22,688.6,0.29044437]
[1737860565188,0.28976268,690.22,688.61,0.26664203]
[1737860565390,1.08584808,690.12,688.63,0.29043172]
[1737860568592,1.08584808,690.13,688.63,0.29043172]
[1737860568789,1.08584808,690.13,688.64,0.26661046]
[1737860568985,1.08584808,690.13,688.66,0.29041907]
[1737860569191,1.08584808,690.13,688.67,0.26661046]
[1737860569392,1.08584808,690.13,688.69,0.29040642]
[1737860570692,1.08584808,690.13,688.7,0.26661046]
[1737860570893,1.08584808,690.13,688.72,0.29039377]
[1737860571089,1.08584808,690.13,688.73,0.26661046]
[1737860571294,1.08584808,690.13,688.75,0.29038112]
[1737860571595,1.08584808,690.11,688.75,0.29038112]
[1737860571794,1.08584808,690.11,688.76,0.2665999]
[1737860571991,1.08584808,690.11,688.78,0.29036847]
[1737860572192,1.08584808,690.11,688.79,0.2665999]
[1737860572387,1.08584808,690.11,688.81,0.29035583]
[1737860572593,1.08584808,690.11,688.82,0.2665999]
[1737860573295,1.08584808,690.11,688.83,0.2903474]
[1737860574698,1.08584808,690.07,688.83,0.2903474]
[1737860577693,1.08584808,690.08,688.83,0.2903474]
[1737860579000,1.08584808,690.08,688.84,0.26659912]
[1737860579199,1.08584808,690.08,688.85,0.29033897]
[1737860579399,1.08584808,690.08,688.86,0.26659912]
[1737860579598,1.08584808,690.08,688.87,0.29033054]
[1737860580404,1.08584808,690.05,688.87,0.29033054]
[1737860580599,1.08584808,690.05,688.88,0.26658727]
[1737860580900,1.08584808,690.05,688.89,0.29032211]
[1737860582603,1.08584808,690.05,688.9,0.26658174]
[1737860583001,1.08584808,690.05,688.91,0.29031368]
[1737860583803,1.08584808,690.05,688.92,0.26658174]
[1737860584202,1.08584808,690.05,688.93,0.29030525]
[1737860584404,1.08584808,690.1,688.93,0.29030525]
[1737860588306,1.08584808,690.08,688.93,0.29030525]
[1737860591814,1.08584808,690.15,688.93,0.29030525]
[1737860594413,1.08584808,690.12,688.93,0.29030525]
[1737860598512,1.08584808,690.06,688.93,0.29030525]
[1737860602618,0.28976268,690.22,688.93,0.29030525]
[1737860602619,1.08584808,689.96,688.93,0.29030525]
[1737860604511,1.08584808,689.96,688.83,1.08815404]
[1737860605314,1.08584808,689.93,688.87,1.08815404]
[1737860610021,1.30351152,690.5,688.18,0.69924371]
[1737860610022,1.08584808,689.94,688.83,1.08815404]
[1737860617322,1.08584808,689.91,688.52,1.08815404]
[1737860617524,1.08584808,689.91,688.53,0.2666642]
[1737860620226,1.08584808,689.91,688.52,1.08815404]
[1737860620426,1.08584808,689.91,688.53,0.26666993]
[1737860620929,1.08584808,689.96,688.53,0.26666993]
[1737860621123,1.08584808,689.96,688.49,0.26666993]